[Event "23rd Hoogeveen Open 2019"]
[Site "Hoogeveen"]
[Date "2019.10.23"]
[Round "6.20"]
[White "Van Foreest, Machteld"]
[Black "Bhambure, Shantanu"]
[Result "1/2-1/2"]
[ECO "B51"]
[WhiteElo "2142"]
[BlackElo "2291"]
[Annotator "RC"]
[PlyCount "131"]
[EventDate "2019.10.19"]
[EventType "swiss"]
[EventCountry "NED"]
[SourceTitle "playchess.com"]
[Source "ChessBase"]
[SourceQuality "1"]
[TimeControl "40/5400+30:1800+30"]

1. e4 {[%emt 0:00:00]} c5 {[%emt 0:00:00]} 2. Nf3 {[%emt 0:00:00]} d6 {[%emt 0:00:00]} 3. Bb5+ {[%emt 0:00:00]} Nd7 {[%emt 0:00:00]} 4. c3 {[%emt 0:00:00]} Ngf6 {[%emt 0:01:45]} 5. Qe2 {[%emt 0:00:59]} a6 {[%emt 0:03:42]} 6. Ba4 {[%emt 0:01:11]} b5 {[%emt 0:02:25]} 7. Bc2 {[%emt 0:00:09]} Bb7 {[%emt 0:06:06]} 8. O-O {[%emt 0:01:07]} c4 {[%emt 0:05:27]} 9. b3 {[%emt 0:11:24]} Qc7 {[%emt 0:03:13]} 10. Nd4 {[%emt 0:08:34]} e5 {[%emt 0:10:06]} 11. Nf5 {[%emt 0:10:58]} g6 {[%emt 0:00:52]} 12. Ng3 {[%emt 0:01:13]} Bg7 {[%emt 0:01:52]} 13. bxc4 {[%emt 0:06:53]} bxc4 {[%emt 0:00:24]} 14. Na3 {[%emt 0:01:17]} Nb6 {[%emt 0:13:28]} 15. d3 {[%emt 0:06:00]} cxd3 {[%emt 0:00:40]} 16. Qxd3 {[%emt 0:04:30]} d5 {[%emt 0:11:34]} 17. exd5 {[%emt 0:07:18]} Nfxd5 {[%emt 0:01:46]} 18. Rb1 {[%emt 0:05:10]} Bc6 {[%emt 0:13:00]} 19. c4 {[%emt 0:04:55]} Ne7 {[%emt 0:01:04]} 20. Bd2 {[%emt 0:05:23]} Na4 {[%emt 0:06:37]} 21. Be3 {[%emt 0:07:25]} Rd8 {[%emt 0:04:15]} 22. Qb3 {[%emt 0:01:20]} O-O {[%emt 0:00:32]} 23. Bb6 {[%emt 0:03:21]} Nxb6 {[%emt 0:00:54]} 24. Qxb6 {[%emt 0:00:04]} Qxb6 {[%emt 0:03:16]} 25. Rxb6 {[%emt 0:00:02]} f5 {[%emt 0:03:22]} 26. c5 {[%emt 0:01:49]} e4 {[%emt 0:00:30]} 27. Rxa6 {[%emt 0:01:55]} Ra8 {[%emt 0:01:23]} 28. Rxa8 {[%emt 0:00:12]} Rxa8 {[%emt 0:00:06]} 29. Bb3+ {[%emt 0:00:22]} Kf8 {[%emt 0:00:42]} 30. Nc2 {[%emt 0:01:30]} Rd8 {[%emt 0:01:22]} 31. Nb4 {[%emt 0:06:42]} Bb5 {[%emt 0:00:10]} 32. Rd1 {[%emt 0:00:30]} Rxd1+ {[%emt 0:00:25]} 33. Bxd1 {[%emt 0:00:01]} Bd4 {[%emt 0:01:14]} 34. a4 {[%emt 0:00:33]} Bd7 {[%emt 0:00:50]} 35. Na6 {[%emt 0:00:40]} Bc8 {[%emt 0:00:58]} 36. Be2 {[%emt 0:01:08]} h5 {[%emt 0:03:20]} 37. Bb5 {[%emt 0:00:51]} Nd5 {[%emt 0:00:33]} 38. Ne2 {[%emt 0:00:08]} Be5 {[%emt 0:00:15]} 39. Bc4 {[%emt 0:01:24]} Nf6 {[%emt 0:00:33]} 40. Nb4 {[%emt 0:01:17]} Nd7 {[%emt 0:00:40]} 41. Nc6 {[%emt 0:08:31]} Bc7 {[%emt 0:04:42]} 42. Na7 {[%emt 0:00:31]} Ne5 {[%emt 0:00:21]} 43. Nxc8 {[%emt 0:10:23]} Nxc4 {[%emt 0:00:04]} 44. Nd4 {[%emt 0:00:23]} Ke8 {[%emt 0:03:13]} 45. Nb5 {[%emt 0:03:29]} Be5 {[%emt 0:05:59]} 46. Nb6 {[%emt 0:03:35]} Na5 {[%emt 0:01:13]} 47. Nd6+ {[%emt 0:03:19]} Ke7 {[%emt 0:03:35]} 48. Nbc4 {[%emt 0:01:20]} Nxc4 {[%emt 0:07:38]} 49. Nxc4 {[%emt 0:00:01]} Bb8 {[%emt 0:00:06]} 50. a5 {[%emt 0:01:30]} Kd7 {[%emt 0:01:57]} 51. a6 {[%emt 0:00:14]} Kc6 {[%emt 0:01:00]} 52. Nd6 {[%emt 0:00:04]} Ba7 {[%emt 0:01:45]} 53. h4 {[%emt 0:03:24]} Bxc5 {[%emt 0:01:31]} 54. Nf7 {[%emt 0:00:05]} Bd4 {[%emt 0:01:24]} 55. Ng5 {[%emt 0:01:21]} Be5 {[%emt 0:02:06]} 56. Ne6 {[%emt 0:00:29]} Bd6 {[%emt 0:00:25]} 57. Nd4+ {[%emt 0:00:33]} Kb6 {[%emt 0:00:22]} 58. a7 {[%emt 0:00:09]} Kb7 {[%emt 0:00:26]} 59. Nc6 {[%emt 0:00:23]} f4 {[%emt 0:01:37]} 60. Kf1 {[%emt 0:00:54]} f3 {[%emt 0:00:25]} 61. gxf3 {[%emt 0:00:31]} exf3 {[%emt 0:00:02]} 62. Kg1 {[%emt 0:00:37]} Bf4 {[%emt 0:00:59]} 63. Ne7 {[%emt 0:00:52]} g5 {[%emt 0:00:28]} 64. hxg5 {[%emt 0:00:21]} Bxg5 {[%emt 0:00:05]} 65. Nc6 {[%emt 0:00:07]} Bf4 {[%emt 0:00:36]} 66. Nd4 {[%emt 0:00:28]} 1/2-1/2

[Event "23rd Hoogeveen Open 2019"]
[Site "Hoogeveen"]
[Date "2019.10.23"]
[Round "6.21"]
[White "Van Dorp, Folke"]
[Black "Van Dael, Siem"]
[Result "0-1"]
[ECO "B51"]
[WhiteElo "2086"]
[BlackElo "2273"]
[Annotator "ChessBase"]
[PlyCount "124"]
[EventDate "2019.10.19"]
[EventType "swiss"]
[EventCountry "NED"]
[SourceTitle "playchess.com"]
[Source "ChessBase"]
[SourceQuality "1"]
[TimeControl "40/5400+30:1800+30"]

1. e4 {[%emt 0:00:00]} c5 {[%emt 0:00:00]} 2. Nf3 {[%emt 0:00:11]} d6 {[%emt 0:00:35]} 3. Bb5+ {[%emt 0:00:07]} Nd7 {[%emt 0:00:08]} 4. O-O {[%emt 0:00:46]} a6 {[%emt 0:01:14]} 5. Bxd7+ {[%emt 0:02:41]} Bxd7 {[%emt 0:00:17]} 6. Re1 {[%emt 0:00:49]} e5 {[%emt 0:05:06]} 7. c3 {[%emt 0:02:54]} c4 {[%emt 0:00:27]} 8. d3 {[%emt 0:08:08]} cxd3 {[%emt 0:01:35]} 9. Qxd3 {[%emt 0:00:15]} Rc8 {[%emt 0:00:21]} 10. a4 {[%emt 0:06:19]} Be7 {[%emt 0:00:40]} 11. c4 {[%emt 0:06:21]} Qc7 {[%emt 0:02:51]} 12. b3 {[%emt 0:04:51]} b5 {[%emt 0:02:11]} 13. axb5 {[%emt 0:03:21]} axb5 {[%emt 0:00:06]} 14. Na3 {[%emt 0:03:25]} bxc4 {[%emt 0:02:52]} 15. bxc4 {[%emt 0:03:52]} Nf6 {[%emt 0:03:10]} 16. Nb5 {[%emt 0:02:32]} Bxb5 {[%emt 0:00:59]} 17. cxb5 {[%emt 0:00:05]} O-O {[%emt 0:00:17]} 18. Bg5 {[%emt 0:01:44]} Qc4 {[%emt 0:04:56]} 19. Qxc4 {[%emt 0:00:35]} Rxc4 {[%emt 0:03:25]} 20. Reb1 {[%emt 0:04:15]} Rb8 {[%emt 0:02:22]} 21. Nd2 {[%emt 0:06:15]} Rcc8 {[%emt 0:12:08]} 22. f3 {[%emt 0:02:55]} Bd8 {[%emt 0:00:37]} 23. Be3 {[%emt 0:01:27]} d5 {[%emt 0:00:53]} 24. Ba7 {[%emt 0:01:50]} Rb7 {[%emt 0:00:40]} 25. Kf1 {[%emt 0:06:42]} h6 {[%emt 0:02:20]} 26. Ke2 {[%emt 0:05:30]} d4 {[%emt 0:03:43]} 27. Rb3 {[%emt 0:02:08]} Nd7 {[%emt 0:02:27]} 28. f4 {[%emt 0:00:26]} f6 {[%emt 0:00:26]} 29. fxe5 {[%emt 0:05:15]} fxe5 {[%emt 0:00:15]} 30. Nf3 {[%emt 0:00:32]} Rc2+ {[%emt 0:03:42]} 31. Kf1 {[%emt 0:00:22]} Rcc7 {[%emt 0:00:36]} 32. b6 {[%emt 0:02:05]} Rc5 {[%emt 0:00:33]} 33. Ne1 {[%emt 0:00:42]} Bxb6 {[%emt 0:03:45]} 34. Bxb6 {[%emt 0:03:45]} Rxb6 {[%emt 0:00:42]} 35. Rxb6 {[%emt 0:00:21]} Nxb6 {[%emt 0:00:05]} 36. Nd3 {[%emt 0:00:17]} Rb5 {[%emt 0:00:09]} 37. Rc1 {[%emt 0:00:26]} Kf7 {[%emt 0:02:57]} 38. Rc7+ {[%emt 0:01:41]} Kf6 {[%emt 0:01:30]} 39. Rb7 {[%emt 0:00:40]} g6 {[%emt 0:02:22]} 40. Ke2 {[%emt 0:01:28]} Nd5 {[%emt 0:01:15]} 41. Ra7 {[%emt 0:33:08]} Nb4 {[%emt 0:32:38]} 42. Nxb4 {[%emt 0:03:25]} Rxb4 {[%emt 0:01:01]} 43. h4 {[%emt 0:00:52]} Rb2+ {[%emt 0:06:16]} 44. Kf3 {[%emt 0:00:12]} Rb3+ {[%emt 0:00:46]} 45. Kf2 {[%emt 0:00:54]} Re3 {[%emt 0:03:18]} 46. Ra6+ {[%emt 0:03:31]} Kf7 {[%emt 0:00:05]} 47. Ra7+ {[%emt 0:00:09]} Kf8 {[%emt 0:00:07]} 48. Ra8+ {[%emt 0:00:07]} Ke7 {[%emt 0:00:04]} 49. Ra7+ {[%emt 0:00:09]} Kd8 {[%emt 0:00:04]} 50. Ra8+ {[%emt 0:00:14]} Kc7 {[%emt 0:00:06]} 51. Ra7+ {[%emt 0:04:17]} Kb6 {[%emt 0:01:56]} 52. Rg7 {[%emt 0:00:26]} Rxe4 {[%emt 0:00:05]} 53. Rxg6+ {[%emt 0:00:03]} Kc5 {[%emt 0:00:05]} 54. Rxh6 {[%emt 0:00:00]} d3 {[%emt 0:00:00]} 55. Rh8 {[%emt 0:00:00]} d2 {[%emt 0:00:00]} 56. Rd8 {[%emt 0:00:00]} Rd4 {[%emt 0:00:00]} 57. Rxd4 {[%emt 0:00:00]} Kxd4 {[%emt 0:00:00]} 58. Ke2 {[%emt 0:00:00]} Kc3 {[%emt 0:00:00]} 59. Kd1 {[%emt 0:00:00]} Kd3 {[%emt 0:00:00]} 60. h5 {[%emt 0:00:00]} e4 {[%emt 0:00:00]} 61. h6 {[%emt 0:00:00]} e3 {[%emt 0:00:00]} 62. h7 {[%emt 0:00:00]} e2# {[%emt 0:00:00]} 0-1

[Event "23rd Hoogeveen Open 2019"]
[Site "Hoogeveen"]
[Date "2019.10.23"]
[Round "6.22"]
[White "Van der Hagen, Loek"]
[Black "Adocchio, Giampiero"]
[Result "0-1"]
[ECO "B72"]
[WhiteElo "1983"]
[BlackElo "2184"]
[Annotator "ChessBase"]
[PlyCount "68"]
[EventDate "2019.10.19"]
[EventType "swiss"]
[EventCountry "NED"]
[SourceTitle "playchess.com"]
[Source "ChessBase"]
[SourceQuality "1"]
[TimeControl "40/5400+30:1800+30"]

1. e4 {[%emt 0:00:00]} c5 {[%emt 0:00:00]} 2. Nf3 {[%emt 0:00:00]} d6 {[%emt 0:00:06]} 3. d4 {[%emt 0:00:00]} cxd4 {[%emt 0:00:05]} 4. Nxd4 {[%emt 0:00:00]} Nf6 {[%emt 0:00:07]} 5. Nc3 {[%emt 0:00:00]} g6 {[%emt 0:00:04]} 6. Be3 {[%emt 0:00:00]} a6 {[%emt 0:00:05]} 7. f3 {[%emt 0:00:25]} b5 {[%emt 0:00:50]} 8. Qd2 {[%emt 0:00:35]} Bb7 {[%emt 0:00:05]} 9. O-O-O {[%emt 0:00:40]} b4 {[%emt 0:00:15]} 10. Nce2 {[%emt 0:02:04]} e5 {[%emt 0:00:08]} 11. Nb3 {[%emt 0:01:14]} a5 {[%emt 0:01:36]} 12. Kb1 {[%emt 0:02:00]} Nbd7 {[%emt 0:03:42]} 13. h4 {[%emt 0:03:44]} h5 {[%emt 0:01:59]} 14. c3 {[%emt 0:10:25]} d5 {[%emt 0:06:33]} 15. exd5 {[%emt 0:07:01]} Nxd5 {[%emt 0:02:34]} 16. Bg5 {[%emt 0:01:13]} Qb6 {[%emt 0:16:26]} 17. c4 {[%emt 0:03:12]} N5f6 {[%emt 0:00:04]} 18. Ng3 {[%emt 0:06:12]} a4 {[%emt 0:04:07]} 19. Nc1 {[%emt 0:01:24]} Be7 {[%emt 0:11:53]} 20. Bd3 {[%emt 0:02:37]} O-O {[%emt 0:01:37]} 21. Qc2 {[%emt 0:01:32]} b3 {[%emt 0:01:38]} 22. axb3 {[%emt 0:01:35]} axb3 {[%emt 0:00:05]} 23. Nxb3 {[%emt 0:07:30]} Qa7 {[%emt 0:10:18]} 24. Bxg6 {[%emt 0:03:16]} Nc5 {[%emt 0:00:19]} 25. Kc1 {[%emt 0:08:36]} Nxb3+ {[%emt 0:05:49]} 26. Qxb3 {[%emt 0:01:20]} fxg6 {[%emt 0:00:51]} 27. Bxf6 {[%emt 0:03:18]} Rxf6 {[%emt 0:01:22]} 28. Rd7 {[%emt 0:07:54]} Rb6 {[%emt 0:01:09]} 29. Qc2 {[%emt 0:05:26]} Bc5 {[%emt 0:03:16]} 30. Kd2 {[%emt 0:06:04]} Bb4+ {[%emt 0:01:22]} 31. Ke2 {[%emt 0:00:32]} Bxf3+ {[%emt 0:00:22]} 32. gxf3 {[%emt 0:01:07]} Qxd7 {[%emt 0:00:05]} 33. Rg1 {[%emt 0:00:53]} Bc5 {[%emt 0:05:02]} 34. Rd1 {[%emt 0:00:56]} Qh3 {[%emt 0:00:11]} 0-1

[Event "23rd Hoogeveen Open 2019"]
[Site "Hoogeveen"]
[Date "2019.10.23"]
[Round "6.23"]
[White "Stock, Andreas"]
[Black "Advait, Bagri"]
[Result "1/2-1/2"]
[ECO "D13"]
[WhiteElo "2076"]
[BlackElo "2231"]
[Annotator "ChessBase"]
[PlyCount "82"]
[EventDate "2019.10.19"]
[EventType "swiss"]
[EventCountry "NED"]
[SourceTitle "playchess.com"]
[Source "ChessBase"]
[SourceQuality "1"]
[TimeControl "40/5400+30:1800+30"]

1. c4 {[%emt 0:00:00]} Nf6 {[%emt 0:04:01]} 2. Nc3 {[%emt 0:00:00]} c6 {[%emt 0:00:08]} 3. Nf3 {[%emt 0:00:22]} d5 {[%emt 0:00:26]} 4. cxd5 {[%emt 0:00:08]} cxd5 {[%emt 0:00:08]} 5. d4 {[%emt 0:00:09]} Nc6 {[%emt 0:00:17]} 6. Bf4 {[%emt 0:04:38]} a6 {[%emt 0:00:42]} 7. e3 {[%emt 0:01:38]} Bf5 {[%emt 0:01:22]} 8. Bd3 {[%emt 0:01:22]} Bxd3 {[%emt 0:00:27]} 9. Qxd3 {[%emt 0:00:07]} e6 {[%emt 0:00:13]} 10. O-O {[%emt 0:00:22]} Bd6 {[%emt 0:01:18]} 11. Bxd6 {[%emt 0:00:48]} Qxd6 {[%emt 0:00:10]} 12. Rfc1 {[%emt 0:00:52]} O-O {[%emt 0:00:16]} 13. Na4 {[%emt 0:10:34]} Ne4 {[%emt 0:16:57]} 14. Nc5 {[%emt 0:02:02]} Nxc5 {[%emt 0:00:10]} 15. Rxc5 {[%emt 0:04:49]} Rac8 {[%emt 0:04:14]} 16. Qb3 {[%emt 0:07:18]} Qb8 {[%emt 0:14:16]} 17. Qb6 {[%emt 0:04:14]} Na7 {[%emt 0:05:43]} 18. Rac1 {[%emt 0:07:13]} Rc6 {[%emt 0:01:38]} 19. Rxc6 {[%emt 0:02:33]} Nxc6 {[%emt 0:00:11]} 20. g3 {[%emt 0:07:33]} Rc8 {[%emt 0:03:35]} 21. Rc5 {[%emt 0:03:31]} Qc7 {[%emt 0:06:22]} 22. Qxc7 {[%emt 0:09:01]} Rxc7 {[%emt 0:00:08]} 23. Ne5 {[%emt 0:01:21]} Kf8 {[%emt 0:03:23]} 24. Kf1 {[%emt 0:13:18]} Ke7 {[%emt 0:00:28]} 25. Ke2 {[%emt 0:05:36]} Kd6 {[%emt 0:03:00]} 26. Nxc6 {[%emt 0:03:18]} Rxc6 {[%emt 0:00:37]} 27. Rxc6+ {[%emt 0:00:24]} Kxc6 {[%emt 0:02:05]} 28. f4 {[%emt 0:00:24]} Kd6 {[%emt 0:02:09]} 29. Kd3 {[%emt 0:00:06]} a5 {[%emt 0:00:45]} 30. a4 {[%emt 0:04:51]} f6 {[%emt 0:01:25]} 31. Kc3 {[%emt 0:00:43]} e5 {[%emt 0:05:28]} 32. b4 {[%emt 0:01:04]} b6 {[%emt 0:00:10]} 33. bxa5 {[%emt 0:00:49]} bxa5 {[%emt 0:00:04]} 34. Kd3 {[%emt 0:00:19]} Ke6 {[%emt 0:01:27]} 35. fxe5 {[%emt 0:02:37]} fxe5 {[%emt 0:00:44]} 36. e4 {[%emt 0:00:06]} dxe4+ {[%emt 0:01:02]} 37. Kxe4 {[%emt 0:00:06]} exd4 {[%emt 0:00:08]} 38. Kxd4 {[%emt 0:00:04]} Kd6 {[%emt 0:00:18]} 39. Kc4 {[%emt 0:00:07]} Kc6 {[%emt 0:00:05]} 40. Kd4 {[%emt 0:00:09]} Kd6 {[%emt 0:00:55]} 41. Kc4 {[%emt 0:30:07]} Ke5 {[%emt 0:00:38]} 1/2-1/2

[Event "23rd Hoogeveen Open 2019"]
[Site "Hoogeveen"]
[Date "2019.10.23"]
[Round "6.24"]
[White "De Boer, Bas"]
[Black "Emans, Job"]
[Result "0-1"]
[ECO "D32"]
[WhiteElo "2142"]
[BlackElo "2028"]
[Annotator "ChessBase"]
[PlyCount "68"]
[EventDate "2019.10.19"]
[EventType "swiss"]
[EventCountry "NED"]
[SourceTitle "playchess.com"]
[Source "ChessBase"]
[SourceQuality "1"]
[TimeControl "40/5400+30:1800+30"]

1. Nf3 {[%emt 0:00:00]} Nf6 {[%emt 0:00:00]} 2. c4 {[%emt 0:00:00]} e6 {[%emt 0:00:00]} 3. Nc3 {[%emt 0:00:00]} d5 {[%emt 0:00:04]} 4. e3 {[%emt 0:00:00]} Be7 {[%emt 0:00:31]} 5. b3 {[%emt 0:00:03]} O-O {[%emt 0:00:37]} 6. Bb2 {[%emt 0:00:07]} c5 {[%emt 0:00:49]} 7. cxd5 {[%emt 0:00:57]} exd5 {[%emt 0:01:11]} 8. d4 {[%emt 0:00:16]} Nc6 {[%emt 0:02:34]} 9. Be2 {[%emt 0:00:36]} Re8 {[%emt 0:12:41]} 10. dxc5 {[%emt 0:05:45]} Bxc5 {[%emt 0:07:52]} 11. O-O {[%emt 0:00:09]} Bg4 {[%emt 0:02:39]} 12. Rc1 {[%emt 0:02:44]} Bb6 {[%emt 0:03:32]} 13. Nb5 {[%emt 0:02:34]} Ne4 {[%emt 0:05:03]} 14. Nbd4 {[%emt 0:05:51]} Qd6 {[%emt 0:02:50]} 15. Nxc6 {[%emt 0:06:12]} bxc6 {[%emt 0:00:27]} 16. Nd4 {[%emt 0:00:05]} Bd7 {[%emt 0:13:47]} 17. Bg4 {[%emt 0:05:37]} Bc7 {[%emt 0:01:33]} 18. g3 {[%emt 0:00:06]} c5 {[%emt 0:00:15]} 19. Nf5 {[%emt 0:05:52]} Qg6 {[%emt 0:08:04]} 20. Nh6+ {[%emt 0:00:09]} Qxh6 {[%emt 0:00:08]} 21. Bxd7 {[%emt 0:00:05]} Re7 {[%emt 0:00:18]} 22. Bf5 {[%emt 0:01:23]} Rd8 {[%emt 0:00:51]} 23. Rc2 {[%emt 0:07:21]} Qg5 {[%emt 0:07:28]} 24. Qg4 {[%emt 0:05:16]} Qxg4 {[%emt 0:01:58]} 25. Bxg4 {[%emt 0:00:07]} d4 {[%emt 0:00:42]} 26. exd4 {[%emt 0:05:44]} cxd4 {[%emt 0:00:51]} 27. Rd1 {[%emt 0:11:49]} d3 {[%emt 0:01:18]} 28. Rc4 {[%emt 0:01:30]} Bb6 {[%emt 0:01:47]} 29. Ba3 {[%emt 0:06:04]} Re5 {[%emt 0:00:37]} 30. Rc6 {[%emt 0:03:31]} Nxf2 {[%emt 0:02:01]} 31. Rxb6 {[%emt 0:00:15]} Nxd1 {[%emt 0:00:15]} 32. Rb7 {[%emt 0:00:41]} Re1+ {[%emt 0:00:15]} 33. Kg2 {[%emt 0:00:18]} Ne3+ {[%emt 0:00:21]} 34. Kf2 {[%emt 0:00:21]} Nxg4+ {[%emt 0:00:07]} 0-1

[Event "23rd Hoogeveen Open 2019"]
[Site "Hoogeveen"]
[Date "2019.10.23"]
[Round "6.25"]
[White "Stavast, Dick"]
[Black "Van der Velde, Henk"]
[Result "0-1"]
[ECO "A07"]
[WhiteElo "2068"]
[BlackElo "2118"]
[Annotator "ChessBase"]
[PlyCount "71"]
[EventDate "2019.10.19"]
[EventType "swiss"]
[EventCountry "NED"]
[SourceTitle "playchess.com"]
[Source "ChessBase"]
[SourceQuality "1"]
[TimeControl "40/5400+30:1800+30"]

1. Nf3 {[%emt 0:00:00]} d5 {[%emt 0:00:00]} 2. g3 {[%emt 0:00:00]} Nf6 {[%emt 0:00:18]} 3. Bg2 {[%emt 0:00:00]} Bf5 {[%emt 0:00:24]} 4. d3 {[%emt 0:00:01]} e6 {[%emt 0:00:55]} 5. O-O {[%emt 0:00:09]} Be7 {[%emt 0:00:54]} 6. Nbd2 {[%emt 0:00:16]} O-O {[%emt 0:01:10]} 7. Qe1 {[%emt 0:00:22]} h6 {[%emt 0:02:47]} 8. e4 {[%emt 0:00:36]} Bh7 {[%emt 0:00:23]} 9. Qe2 {[%emt 0:01:54]} c5 {[%emt 0:01:09]} 10. b3 {[%emt 0:01:25]} Nc6 {[%emt 0:01:19]} 11. Bb2 {[%emt 0:00:43]} Qc7 {[%emt 0:03:43]} 12. a3 {[%emt 0:24:41]} b5 {[%emt 0:14:28]} 13. Rae1 {[%emt 0:05:58]} c4 {[%emt 0:20:35]} 14. exd5 {[%emt 0:11:53]} cxd3 {[%emt 0:00:47]} 15. cxd3 {[%emt 0:00:15]} Nxd5 {[%emt 0:00:45]} 16. Rc1 {[%emt 0:01:44]} Qb6 {[%emt 0:08:23]} 17. Bh3 {[%emt 0:06:39]} Bf6 {[%emt 0:09:52]} 18. Ne4 {[%emt 0:02:58]} Bxb2 {[%emt 0:00:10]} 19. Qxb2 {[%emt 0:00:03]} Nde7 {[%emt 0:06:22]} 20. Nc5 {[%emt 0:05:42]} Rad8 {[%emt 0:00:43]} 21. d4 {[%emt 0:12:44]} Rd5 {[%emt 0:01:31]} 22. Rfe1 {[%emt 0:04:12]} Rfd8 {[%emt 0:09:02]} 23. Nxe6 {[%emt 0:01:19]} fxe6 {[%emt 0:00:24]} 24. Bxe6+ {[%emt 0:00:05]} Kh8 {[%emt 0:00:17]} 25. Bxd5 {[%emt 0:00:18]} Rxd5 {[%emt 0:02:46]} 26. Ne5 {[%emt 0:03:22]} Nxe5 {[%emt 0:02:37]} 27. dxe5 {[%emt 0:01:23]} Qe6 {[%emt 0:02:06]} 28. Qc3 {[%emt 0:03:52]} Bf5 {[%emt 0:01:25]} 29. Rcd1 {[%emt 0:01:31]} Bh3 {[%emt 0:02:48]} 30. Rxd5 {[%emt 0:01:44]} Qxd5 {[%emt 0:00:01]} 31. f3 {[%emt 0:00:16]} Be6 {[%emt 0:01:27]} 32. Re3 {[%emt 0:03:04]} Qd1+ {[%emt 0:01:00]} 33. Kf2 {[%emt 0:00:26]} Nd5 {[%emt 0:00:37]} 34. Qd3 {[%emt 0:02:24]} Nxe3 {[%emt 0:00:17]} 35. Qxe3 {[%emt 0:00:02]} Qxb3 {[%emt 0:01:24]} 36. Qd2 {[%emt 0:00:34]} 0-1

[Event "23rd Hoogeveen Open 2019"]
[Site "Hoogeveen"]
[Date "2019.10.23"]
[Round "6.26"]
[White "Ricken, Katharina"]
[Black "Nicolai, Amir"]
[Result "1-0"]
[ECO "D02"]
[WhiteElo "1970"]
[BlackElo "2117"]
[Annotator "ChessBase"]
[PlyCount "77"]
[EventDate "2019.10.19"]
[EventType "swiss"]
[EventCountry "NED"]
[SourceTitle "playchess.com"]
[Source "ChessBase"]
[SourceQuality "1"]
[TimeControl "40/5400+30:1800+30"]

1. Nf3 {[%emt 0:00:00]} d5 {[%emt 0:00:00]} 2. g3 {[%emt 0:00:00]} Nc6 {[%emt 0:00:00]} 3. d4 {[%emt 0:00:00]} Bf5 {[%emt 0:00:00]} 4. Bg2 {[%emt 0:00:00]} e6 {[%emt 0:00:00]} 5. O-O {[%emt 0:00:00]} Nb4 {[%emt 0:00:00]} 6. Na3 {[%emt 0:00:00]} h6 {[%emt 0:00:00]} 7. c3 {[%emt 0:00:00]} Nc6 {[%emt 0:00:04]} 8. Qb3 {[%emt 0:00:12]} Bxa3 {[%emt 0:00:38]} 9. Qxa3 {[%emt 0:00:42]} Nge7 {[%emt 0:00:46]} 10. Nd2 {[%emt 0:01:18]} e5 {[%emt 0:09:27]} 11. dxe5 {[%emt 0:02:00]} Nxe5 {[%emt 0:01:32]} 12. e4 {[%emt 0:01:19]} Be6 {[%emt 0:07:45]} 13. Nf3 {[%emt 0:05:49]} Nc4 {[%emt 0:11:31]} 14. Qa4+ {[%emt 0:00:17]} Qd7 {[%emt 0:11:33]} 15. Qxd7+ {[%emt 0:00:35]} Kxd7 {[%emt 0:00:11]} 16. Rd1 {[%emt 0:02:52]} Kc8 {[%emt 0:07:52]} 17. exd5 {[%emt 0:02:26]} Bxd5 {[%emt 0:01:57]} 18. b3 {[%emt 0:00:54]} Nb6 {[%emt 0:03:50]} 19. Bh3+ {[%emt 0:11:06]} Kb8 {[%emt 0:05:30]} 20. Nd4 {[%emt 0:01:16]} Nc6 {[%emt 0:04:44]} 21. c4 {[%emt 0:03:14]} Nxd4 {[%emt 0:02:03]} 22. Rxd4 {[%emt 0:00:11]} Bc6 {[%emt 0:01:02]} 23. Bf4 {[%emt 0:05:30]} Nc8 {[%emt 0:04:17]} 24. Rad1 {[%emt 0:01:50]} b6 {[%emt 0:00:23]} 25. Rd8 {[%emt 0:01:06]} Rxd8 {[%emt 0:00:11]} 26. Rxd8 {[%emt 0:00:01]} Kb7 {[%emt 0:00:14]} 27. Rf8 {[%emt 0:07:07]} g5 {[%emt 0:03:57]} 28. Be5 {[%emt 0:01:53]} Nd6 {[%emt 0:00:31]} 29. Bxd6 {[%emt 0:00:23]} cxd6 {[%emt 0:00:03]} 30. Rxf7+ {[%emt 0:00:19]} Ka6 {[%emt 0:00:14]} 31. Bg2 {[%emt 0:17:15]} Bxg2 {[%emt 0:04:49]} 32. Kxg2 {[%emt 0:00:01]} d5 {[%emt 0:07:30]} 33. cxd5 {[%emt 0:01:22]} Rd8 {[%emt 0:00:06]} 34. Rf5 {[%emt 0:03:45]} Rd6 {[%emt 0:05:31]} 35. Kf3 {[%emt 0:01:13]} Kb5 {[%emt 0:00:03]} 36. Ke4 {[%emt 0:00:32]} Kc5 {[%emt 0:04:10]} 37. Rf8 {[%emt 0:03:39]} Rd7 {[%emt 0:00:00]} 38. Rc8+ {[%emt 0:00:57]} Kd6 {[%emt 0:00:00]} 39. Rc6+ {[%emt 0:00:28] Kxd5+} 1-0

[Event "23rd Hoogeveen Open 2019"]
[Site "Hoogeveen"]
[Date "2019.10.23"]
[Round "6.29"]
[White "Ypma, Jord"]
[Black "Faber, Hugo"]
[Result "1/2-1/2"]
[ECO "E62"]
[WhiteElo "2013"]
[BlackElo "2077"]
[Annotator "NA"]
[PlyCount "89"]
[EventDate "2019.10.19"]
[EventType "swiss"]
[EventCountry "NED"]
[SourceTitle "playchess.com"]
[Source "ChessBase"]
[SourceQuality "1"]
[TimeControl "40/5400+30:1800+30"]

1. d4 {[%emt 0:00:00]} Nf6 {[%emt 0:00:00]} 2. c4 {[%emt 0:00:00]} g6 {[%emt 0:00:17]} 3. g3 {[%emt 0:00:20]} Bg7 {[%emt 0:00:39]} 4. Bg2 {[%emt 0:00:12]} O-O {[%emt 0:00:20]} 5. Nc3 {[%emt 0:00:13]} d6 {[%emt 0:00:46]} 6. Nf3 {[%emt 0:00:07]} c6 {[%emt 0:00:42]} 7. O-O {[%emt 0:00:33]} Qa5 {[%emt 0:02:01]} 8. e4 {[%emt 0:00:13]} Qh5 {[%emt 0:00:44]} 9. Ng5 {[%emt 0:01:35]} Qxd1 {[%emt 0:02:45]} 10. Rxd1 {[%emt 0:00:06]} e5 {[%emt 0:00:16] E62: King's Indian: Fianchetto: 6...c6 and Panno Variation (6...Nc6) without ...a6} 11. d5 {[%emt 0:00:22]} h6 {[%emt 0:03:40]} 12. Nf3 {[%emt 0:01:19]} cxd5 {[%emt 0:01:03]} 13. cxd5 {[%emt 0:01:12] [#]} Na6 $146 {[%emt 0:04:43]} ({Predecessor:} 13... Bd7 14. Nd2 Rc8 15. Bf1 Bf8 16. f3 Na6 17. Nc4 Nb4 18. Ne3 {½-½ (50) Leko,P (2734)-Mamedyarov,S (2761) Dortmund 2010}) 14. Ne1 {[%emt 0:13:39]} Bd7 {[%emt 0:05:09]} 15. Bf1 {[%emt 0:05:41]} Nc5 {[%emt 0:03:27]} 16. f3 {[%emt 0:02:06]} a6 {[%emt 0:02:22]} 17. Be3 {[%emt 0:01:39]} Rfc8 {[%emt 0:04:01]} 18. Rac1 {[%emt 0:05:19]} Ne8 {[%emt 0:07:17]} 19. Nd3 {[%emt 0:02:29]} Nxd3 {[%emt 0:07:07]} 20. Bxd3 {[%emt 0:00:17]} h5 {[%emt 0:01:09]} 21. Bc2 {[%emt 0:18:55]} b5 {[%emt 0:04:01]} 22. Bd3 {[%emt 0:05:00]} Kh7 {[%emt 0:04:41]} 23. a3 {[%emt 0:04:02]} Bh6 {[%emt 0:01:59]} 24. Bxh6 {[%emt 0:02:10]} Kxh6 {[%emt 0:01:01]} 25. Na2 {[%emt 0:04:10]} a5 {[%emt 0:03:53]} 26. Rxc8 {[%emt 0:01:10]} Rxc8 {[%emt 0:00:14]} 27. Rc1 {[%emt 0:00:06]} Rxc1+ {[%emt 0:02:07]} 28. Nxc1 {[%emt 0:00:03]} Kg7 {[%emt 0:04:14]} 29. Nb3 {[%emt 0:08:56]} a4 {[%emt 0:00:34]} 30. Nc1 {[%emt 0:01:53]} Kf6 {[%emt 0:00:58]} 31. Kf2 {[%emt 0:00:26]} Ke7 {[%emt 0:00:23]} 32. Ke3 {[%emt 0:02:39]} Kd8 {[%emt 0:00:17]} 33. Ne2 {[%emt 0:01:04]} Kc7 {[%emt 0:00:53]} 34. h3 {[%emt 0:03:14]} Kb6 {[%emt 0:01:02]} 35. g4 {[%emt 0:00:09]} hxg4 {[%emt 0:02:37]} 36. fxg4 {[%emt 0:00:22]} Kc5 {[%emt 0:03:57]} 37. Nc1 {[%emt 0:06:33]} Ng7 {[%emt 0:02:20]} 38. Be2 {[%emt 0:02:40]} f5 {[%emt 0:05:20]} 39. Nd3+ {[%emt 0:00:07]} Kb6 {[%emt 0:00:08]} 40. Bf3 {[%emt 0:04:48]} fxg4 {[%emt 0:06:15]} 41. Bxg4 {[%emt 0:31:24]} Bxg4 {[%emt 0:33:24]} 42. hxg4 {[%emt 0:00:12]} g5 {[%emt 0:02:19]} 43. Kd2 {[%emt 0:00:00]} Ne8 {[%emt 0:00:00]} 44. Kc3 $11 {[%emt 0:00:00]} Nf6 {[%emt 0:00:00]} 45. Nf2 {[%emt 0:00:00]} 1/2-1/2